fUSD/lending_fUSD_20240426
["ID","MTS","AMOUNT","RATE_DAILY","PERIOD"]
[323677292,1714159840650,-500.98604982,0.00010958,2]
[323677293,1714159840659,-500.0,0.00010958,2]
[323677294,1714159840669,-567.6760498,0.00010958,2]
[323677295,1714159840679,-2000.68,0.00010958,2]
[323677296,1714159840688,-500.0,0.00010958,2]
[323677297,1714159840698,-500.0,0.00010958,2]
[323677298,1714159840707,-905.84,0.00010958,2]
[323677299,1714159840717,-1808.04,0.00010958,2]
[323677300,1714159840727,-500.0,0.00010958,2]
[323677301,1714159840736,-2215.46,0.00010958,2]
[323677302,1714159840745,-500.0,0.00010958,2]
[323677303,1714159840754,-500.0,0.00010958,2]
[323677304,1714159840764,-500.0,0.00010958,2]
[323677305,1714159840774,-500.0,0.00010958,2]
[323677306,1714159840784,-1977.46,0.00010958,2]
[323677307,1714159840797,-500.0,0.00010958,2]
[323677308,1714159840807,-500.0,0.00010958,2]
[323677309,1714159840816,-1162.29,0.00010958,2]
[323677310,1714159840825,-500.0,0.00010958,2]
[323677311,1714159840834,-500.0,0.00010958,2]
[323677312,1714159840843,-1124.54,0.00010958,2]
[323677313,1714159840852,-2034.05,0.00010958,2]
[323677314,1714159840861,-500.0,0.00010958,2]
[323677315,1714159840870,-884.62,0.00010958,2]
[323677316,1714159840879,-1865.52,0.00010958,2]
[323677317,1714159840889,-500.0,0.00010958,2]
[323677318,1714159840905,-500.0,0.00010958,2]
[323677319,1714159840915,-500.0,0.00010958,2]
[323677320,1714159840924,-500.0,0.00010958,2]
[323677321,1714159840934,-502.51017506,0.00010958,2]
[323677322,1714159840944,-500.0,0.00010958,2]
[323677323,1714159840955,-500.0,0.00010958,2]
[323677324,1714159840965,-500.0,0.00010958,2]
[323677325,1714159840974,-500.0,0.00010958,2]
[323677326,1714159840983,-504.34777392,0.00010958,2]
[323677327,1714159840993,-2672.35,0.00010958,2]
[323677328,1714159841002,-500.0,0.00010958,2]
[323677329,1714159841012,-1813.19,0.00010958,2]
[323677330,1714159841021,-1613.85,0.00010958,2]
[323677331,1714159841031,-500.0,0.00010958,2]
[323677332,1714159841040,-500.0,0.00010958,2]
[323677333,1714159841050,-246.0560207,0.00010958,2]
[323677334,1714159841059,-500.0,0.00010958,2]
[323677335,1714159841068,-3595.28,0.00010958,2]
[323677336,1714159841078,-500.0,0.00010958,2]
[323677337,1714159841087,-500.0,0.00010958,2]
[323677338,1714159841096,-4191.02,0.00010958,2]
[323677339,1714159841105,-500.89447735,0.00010958,2]
[323677340,1714159841115,-500.0,0.00010958,2]
[323677341,1714159841124,-500.0,0.00010958,2]
[323677342,1714159841133,-500.0,0.00010958,2]
[323677343,1714159841142,-500.0,0.00010958,2]
[323677344,1714159841151,-2252.77,0.00010958,2]
[323677345,1714159841160,-1538.51,0.00010958,2]
[323677346,1714159841169,-500.6977463,0.00010958,2]
[323677347,1714159841178,-500.0,0.00010958,2]
[323677348,1714159841187,-500.0,0.00010958,2]
[323677349,1714159841198,-500.0,0.00010958,2]
[323677350,1714159841207,-500.0,0.00010958,2]
[323677351,1714159841215,-500.0,0.00010958,2]
[323677352,1714159841225,-284.24616713,0.00010958,2]
[323677353,1714159841234,-500.0,0.00010958,2]
[323677354,1714159841244,-2186.13,0.00010958,2]
[323677355,1714159841253,-500.0,0.00010958,2]
[323677356,1714159841263,-1366.27,0.00010958,2]
[323677357,1714159841272,-909.87,0.00010958,2]
[323677358,1714159841281,-500.0,0.00010958,2]
[323677359,1714159841290,-500.0,0.00010958,2]
[323677360,1714159841299,-500.0,0.00010958,2]
[323677361,1714159841308,-2198.98,0.00010958,2]
[323677362,1714159841317,-891.95,0.00010958,2]
[323677363,1714159841326,-210.34,0.00010958,2]
[323677364,1714159841335,-500.0,0.00010958,2]
[323677365,1714159841345,-500.0,0.00010958,2]
[323677366,1714159841354,-500.0,0.00010958,2]
[323677367,1714159841363,-500.0,0.00010958,2]
[323677368,1714159841372,-500.0,0.00010958,2]
[323677369,1714159841382,-500.0,0.00010958,2]
[323677370,1714159841391,-796.92,0.00010958,2]
[323677371,1714159841400,-500.0,0.00010958,2]
[323677372,1714159841409,-5838.33,0.00010958,2]
[323677373,1714159841419,-501.49258767,0.00010958,2]
[323677374,1714159841428,-1890.82,0.00010958,2]
[323677375,1714159841438,-3702.33,0.00010958,2]
[323677376,1714159841448,-500.0,0.00010958,2]
[323677377,1714159841458,-1963.82,0.00010958,2]
[323677378,1714159841467,-500.0,0.00010958,2]
[323677379,1714159841476,-500.0,0.00010958,2]
[323677380,1714159841485,-500.0,0.00010958,2]
[323677381,1714159841494,-500.0,0.00010958,2]
[323677382,1714159841503,-500.0,0.00010958,2]
[323677383,1714159841513,-500.0,0.00010958,2]
[323677384,1714159841524,-2154.64,0.00010958,2]
[323677385,1714159841533,-500.0,0.00010958,2]
[323677386,1714159841547,-500.0,0.00010958,2]
[323677387,1714159841556,-867.14,0.00010958,2]
[323677388,1714159841565,-500.0,0.00010958,2]
[323677389,1714159841574,-2372.44,0.00010958,2]
[323677390,1714159841585,-150.64843487,0.00010958,2]
[323677391,1714159841595,-503.08403738,0.00010958,2]
[323677392,1714159841605,-4510.22,0.00010958,2]
[323677393,1714159841615,-500.0,0.00010958,2]
[323677394,1714159841626,-500.0,0.00010958,2]
[323677395,1714159841635,-500.0,0.00010958,2]
[323677396,1714159841645,-500.0,0.00010958,2]
[323677397,1714159841654,-500.0,0.00010958,2]
[323677398,1714159841663,-500.0,0.00010958,2]
[323677399,1714159841672,-1470.12,0.00010958,2]
[323677400,1714159841683,-500.0,0.00010958,2]
[323677401,1714159841692,-1081.84,0.00010958,2]
[323677402,1714159841705,-500.0,0.00010958,2]
[323677403,1714159841714,-2465.42,0.00010958,2]
[323677404,1714159841723,-1591.78,0.00010958,2]
[323677405,1714159841733,-501.5207378,0.00010958,2]
[323677406,1714159841742,-500.0,0.00010958,2]
[323677407,1714159841751,-4572.23,0.00010958,2]
[323677408,1714159841760,-502.13962029,0.00010958,2]
[323677409,1714159841770,-503.86426964,0.00010958,2]
[323677410,1714159841779,-500.0,0.00010958,2]
[323677411,1714159841788,-500.0,0.00010958,2]
[323677412,1714159841798,-380.39240618,0.00010958,2]
[323677413,1714159841807,-500.0,0.00010958,2]
[323677414,1714159841817,-881.87,0.00010958,2]
[323677415,1714159841826,-5646.67,0.00010958,2]
[323677416,1714159841836,-500.0,0.00010958,2]
[323677417,1714159841845,-500.0,0.00010958,2]
[323677418,1714159841855,-654.29,0.00010958,2]
[323677419,1714159841864,-500.81445411,0.00010958,2]
[323677420,1714159841874,-502.96441976,0.00010958,2]
[323677421,1714159841883,-500.0,0.00010958,2]
[323677422,1714159841892,-2969.24,0.00010958,2]
[323677423,1714159841902,-962.29,0.00010958,2]
[323677424,1714159841910,-500.0,0.00010958,2]
[323677425,1714159841919,-500.0,0.00010958,2]
[323677426,1714159841929,-2885.58,0.00010958,2]
[323677427,1714159841938,-500.0,0.00010958,2]
[323677428,1714159841948,-502.61635844,0.00010958,2]
[323677429,1714159841958,-865.94,0.00010958,2]
[323677430,1714159841967,-500.0,0.00010958,2]
[323677431,1714159841976,-1054.2,0.00010958,2]
[323677432,1714159841985,-500.0,0.00010958,2]
[323677433,1714159841994,-856.74,0.00010958,2]
[323677434,1714159842003,-500.0,0.00010958,2]
[323677435,1714159842012,-500.0,0.00010958,2]
[323677436,1714159842021,-1017.43,0.00010958,2]
[323677437,1714159842031,-500.0,0.00010958,2]
[323677438,1714159842040,-500.0,0.00010958,2]
[323677439,1714159842049,-500.0,0.00010958,2]
[323677440,1714159842059,-596.655813,0.00010958,2]
[323677441,1714159842069,-940.44,0.00010958,2]
[323677442,1714159842079,-500.0,0.00010958,2]
[323677443,1714159842088,-500.0,0.00010958,2]
[323677444,1714159842098,-500.0,0.00010958,2]
[323677445,1714159842108,-1246.24,0.00010958,2]
[323677446,1714159842118,-500.0,0.00010958,2]
[323677447,1714159842127,-500.0,0.00010958,2]
[323677448,1714159842137,-500.0,0.00010958,2]
[323677449,1714159842147,-500.0,0.00010958,2]
[323677450,1714159842157,-500.4326791,0.00010958,2]
[323677451,1714159842167,-500.0,0.00010958,2]
[323677452,1714159842176,-500.0,0.00010958,2]
[323677453,1714159842186,-322.51858577,0.00010958,2]
[323677454,1714159842196,-163.16920512,0.00010958,2]
[323677455,1714159842206,-908.96,0.00010958,2]
[323677456,1714159842216,-1724.94,0.00010958,2]
[323677457,1714159842226,-500.0,0.00010958,2]
[323677458,1714159842236,-500.0,0.00010958,2]
[323677459,1714159842245,-500.0,0.00010958,2]
[323677460,1714159842256,-500.0,0.00010958,2]
[323677461,1714159842266,-504.46913743,0.00010958,2]
[323677462,1714159842276,-500.0,0.00010958,2]
[323677463,1714159842286,-500.0,0.00010958,2]
[323677464,1714159842296,-550.85667913,0.00010958,2]
[323677466,1714159842306,-500.0,0.00010958,2]
[323677468,1714159842316,-4684.36,0.00010958,2]
[323677470,1714159842326,-500.0,0.00010958,2]
[323677472,1714159842335,-500.0,0.00010958,2]
[323677474,1714159842345,-500.0,0.00010958,2]
[323677476,1714159842354,-500.0,0.00010958,2]
[323677478,1714159842363,-500.0,0.00010958,2]
[323677479,1714159842373,-500.0,0.00010958,2]
[323677480,1714159842383,-500.0,0.00010958,2]
[323677481,1714159842392,-648.41420551,0.00010958,2]
[323677482,1714159842402,-576.2703296,0.00010958,2]
[323677484,1714159842411,-5610.35,0.00010958,2]
[323677485,1714159842421,-500.0,0.00010958,2]
[323677486,1714159842430,-500.0,0.00010958,2]
[323677487,1714159842441,-500.0,0.00010958,2]
[323677488,1714159842452,-985.86,0.00010958,2]
[323677489,1714159842461,-500.0,0.00010958,2]
[323677490,1714159842470,-500.0,0.00010958,2]
[323677492,1714159842481,-500.0,0.00010958,2]
[323677493,1714159842491,-500.0,0.00010958,2]
[323677494,1714159842500,-500.0,0.00010958,2]
[323677495,1714159842509,-500.0,0.00010958,2]
[323677496,1714159842519,-500.0,0.00010958,2]
[323677497,1714159842529,-2974.11,0.00010958,2]
[323677498,1714159842541,-500.0,0.00010958,2]
[323677499,1714159842551,-500.0,0.00010958,2]
[323677500,1714159842561,-633.4249711,0.00010958,2]
[323677501,1714159842571,-568.07765721,0.00010958,2]
[323677502,1714159842580,-500.0,0.00010958,2]
[323677503,1714159842591,-500.0,0.00010958,2]
[323677504,1714159842601,-793.01,0.00010958,2]
[323677505,1714159842611,-500.0,0.00010958,2]
[323677507,1714159842621,-2451.96,0.00010958,2]
[323677508,1714159842630,-500.0,0.00010958,2]
[323677509,1714159842640,-500.0,0.00010958,2]
[323677510,1714159842650,-4076.46,0.00010958,2]
[323677511,1714159842660,-500.0,0.00010958,2]
[323677512,1714159842669,-500.0,0.00010958,2]
[323677513,1714159842679,-500.0,0.00010958,2]
[323677514,1714159842689,-500.0,0.00010958,2]
[323677515,1714159842700,-3332.68,0.00010958,2]
[323677516,1714159842710,-500.0,0.00010958,2]
[323677517,1714159842720,-500.0,0.00010958,2]
[323677518,1714159842730,-500.0,0.00010958,2]
[323677519,1714159842740,-500.0,0.00010958,2]
[323677520,1714159842750,-1281.89,0.00010958,2]
[323677521,1714159842761,-612.60867078,0.00010958,2]
[323677522,1714159842771,-501.39591085,0.00010958,2]
[323677523,1714159842782,-500.0,0.00010958,2]
[323677524,1714159842791,-3135.1,0.00010958,2]
[323677525,1714159842801,-500.0,0.00010958,2]
[323677526,1714159842811,-500.0,0.00010958,2]
[323677527,1714159842821,-616.82,0.00010958,2]
[323677528,1714159842830,-500.0,0.00010958,2]
[323677529,1714159842840,-500.0,0.00010958,2]
[323677530,1714159842849,-517.6993529,0.00010958,2]
[323677531,1714159842859,-500.0,0.00010958,2]
[323677532,1714159842869,-500.0,0.00010958,2]
[323677533,1714159842879,-500.0,0.00010958,2]
[323677534,1714159842889,-500.0,0.00010958,2]
[323677535,1714159842899,-500.0,0.00010958,2]
[323677536,1714159842910,-2000.0,0.00010959,3]
[323677537,1714159842920,-967.75282594,0.00010962,2]
[323677538,1714159842929,-500.0,0.00010962,2]
[323677539,1714159842939,-500.0,0.00010962,2]
[323677540,1714159842950,-500.0,0.00010962,2]
[323677541,1714159842959,-500.0,0.00010962,2]
[323677542,1714159842970,-500.0,0.00010962,2]
[323677543,1714159842979,-500.0,0.00010962,2]
[323677544,1714159842989,-500.0,0.00010962,2]
[323677545,1714159842998,-500.0,0.00010962,2]
[323677546,1714159843008,-662.88,0.00010962,2]
[323677547,1714159843018,-641.96,0.00010962,2]
[323677548,1714159843027,-500.0,0.00010962,2]
[323677550,1714159843037,-500.0,0.00010962,2]
[323677552,1714159843047,-500.0,0.00010962,2]
[323677553,1714159843056,-500.0,0.00010962,2]
[323677554,1714159843066,-351.61,0.00010962,2]
[323677555,1714159843076,-500.0,0.00010962,2]
[323677556,1714159843086,-500.0,0.00010962,2]
[323677557,1714159843096,-1376.86,0.00010962,2]
[323677558,1714159843105,-764.8,0.00010962,2]
[323677559,1714159843115,-500.0,0.00010962,2]
[323677560,1714159843124,-500.0,0.00010962,2]
[323677561,1714159843134,-919.05,0.00010962,2]
[323677562,1714159843143,-500.0,0.00010962,2]
[323677563,1714159843154,-500.0,0.00010962,2]
[323677564,1714159843164,-1129.06,0.00010962,2]
[323677567,1714159843173,-500.0,0.00010962,2]
[323677568,1714159843183,-1865.52,0.00010962,2]
[323677569,1714159843193,-164.45880512,0.00010963,2]
[323677570,1714159843203,-297.61460704,0.00010963,2]
[323677571,1714159843213,-183.10853222,0.00010963,2]
[323677572,1714159843222,-161.53617557,0.00010963,2]
[323677573,1714159843232,-23113.10975861,0.00010963,2]
[323677574,1714159843241,-500.0,0.00010963,2]
[323677575,1714159843250,-500.0,0.00010963,2]
[323677576,1714159843259,-500.0,0.00010963,2]
[323677577,1714159843270,-500.0,0.00010963,2]
[323677578,1714159843279,-500.0,0.00010963,2]
[323677579,1714159843289,-500.0,0.00010963,2]
[323677580,1714159843298,-500.0,0.00010963,2]
[323677581,1714159843308,-687.76,0.00010963,2]
[323677582,1714159843318,-500.0,0.00010963,2]
[323677583,1714159843327,-526.4,0.00010963,2]
[323677584,1714159843337,-500.0,0.00010963,2]
[323677585,1714159843346,-500.0,0.00010963,2]
[323677586,1714159843355,-1168.82,0.00010963,2]
[323677587,1714159843365,-500.0,0.00010963,2]
[323677588,1714159843375,-500.0,0.00010963,2]
[323677589,1714159843384,-500.0,0.00010963,2]
[323677590,1714159843394,-713.8,0.00010963,2]
[323677591,1714159843403,-500.0,0.00010963,2]
[323677592,1714159843413,-643.3,0.00010963,2]
[323677593,1714159843422,-593.29,0.00010963,2]
[323677594,1714159843432,-500.0,0.00010963,2]
[323677595,1714159843442,-610.84845624,0.00010963,2]
[323677596,1714159843452,-948.39,0.00010963,2]
[323677597,1714159843462,-500.0,0.00010963,2]
[323677598,1714159843472,-797.82,0.00010963,2]
[323677599,1714159843482,-703.42,0.00010963,2]
[323677600,1714159843492,-500.0,0.00010963,2]
[323677601,1714159843501,-500.0,0.00010963,2]
[323677602,1714159843511,-650.99,0.00010963,2]
[323677603,1714159843521,-848.7,0.00010963,2]
[323677604,1714159843531,-500.0,0.00010963,2]
[323677605,1714159843543,-500.0,0.00010963,2]
[323677606,1714159843552,-500.0,0.00010963,2]
[323677607,1714159843562,-500.0,0.00010963,2]
[323677608,1714159843572,-500.0,0.00010963,2]
[323677609,1714159843582,-531.83,0.00010963,2]
[323677610,1714159843592,-500.0,0.00010963,2]
[323677611,1714159843601,-500.0,0.00010963,2]
[323677612,1714159843611,-500.0,0.00010963,2]
[323677613,1714159843622,-500.0,0.00010963,2]
[323677614,1714159843632,-716.68,0.00010963,2]
[323677615,1714159843642,-500.0,0.00010963,2]
[323677616,1714159843651,-500.0,0.00010963,2]
[323677617,1714159843661,-500.0,0.00010963,2]
[323677618,1714159843671,-632.91,0.00010963,2]
[323677619,1714159843681,-882.72,0.00010963,2]
[323677620,1714159843691,-500.0,0.00010963,2]
[323677621,1714159843701,-500.0,0.00010963,2]
[323677622,1714159843711,-500.0,0.00010963,2]
[323677623,1714159843721,-500.0,0.00010963,2]
[323677624,1714159843730,-500.0,0.00010963,2]
[323677625,1714159843740,-668.12,0.00010963,2]
[323677626,1714159843750,-500.0,0.00010963,2]
[323677627,1714159843760,-500.0,0.00010963,2]
[323677628,1714159843769,-1154.14,0.00010963,2]
[323677629,1714159843779,-500.0,0.00010963,2]
[323677630,1714159843789,-500.0,0.00010963,2]
[323677631,1714159843799,-500.0,0.00010963,2]
[323677632,1714159843808,-500.0,0.00010963,2]
[323677633,1714159843818,-584.29,0.00010963,2]
[323677634,1714159843827,-500.0,0.00010963,2]
[323677635,1714159843837,-948.11,0.00010963,2]
[323677636,1714159843847,-775.9,0.00010963,2]
[323677637,1714159843857,-408.36793413,0.00010964,2]
[323677638,1714159843866,-558.69566553,0.00010964,2]
[323677639,1714159843876,-500.0,0.00010964,2]
[323677640,1714159843886,-500.0,0.00010964,2]
[323677641,1714159843896,-500.0,0.00010964,2]
[323677642,1714159843906,-500.0,0.00010964,2]
[323677643,1714159843916,-500.0,0.00010964,2]
[323677644,1714159843925,-500.0,0.00010964,2]
[323677645,1714159843935,-500.0,0.00010964,2]
[323677646,1714159843944,-500.0,0.00010964,2]
[323677647,1714159843955,-551.34663883,0.00010964,2]
[323677648,1714159843965,-500.0,0.00010964,2]
[323677649,1714159843974,-500.0,0.00010964,2]
[323677650,1714159843984,-500.0,0.00010964,2]
[323677651,1714159843994,-500.0,0.00010964,2]
[323677652,1714159844004,-500.0,0.00010964,2]
[323677653,1714159844013,-155.0,0.00010964,2]
[323677654,1714159844023,-500.0,0.00010964,2]
[323677655,1714159844033,-500.0,0.00010964,2]
[323677656,1714159844043,-500.0,0.00010964,2]
[323677657,1714159844052,-500.0,0.00010964,2]
[323677658,1714159844062,-500.0,0.00010964,2]
[323677659,1714159844072,-172.53273228,0.00010964,2]
[323677660,1714159844081,-500.0,0.00010964,2]
[323677661,1714159844091,-500.0,0.00010964,2]
[323677662,1714159844101,-558.73,0.00010964,2]
[323677663,1714159844111,-500.0,0.00010964,2]
[323677664,1714159844120,-500.0,0.00010964,2]
[323677665,1714159844130,-500.0,0.00010964,2]
[323677666,1714159844139,-500.0,0.00010964,2]
[323677667,1714159844149,-500.0,0.00010964,2]
[323677668,1714159844158,-500.0,0.00010964,2]
[323677669,1714159844168,-500.0,0.00010964,2]
[323677670,1714159844177,-500.0,0.00010964,2]
[323677671,1714159844186,-500.0,0.00010964,2]
[323677672,1714159844196,-500.0,0.00010964,2]
[323677673,1714159844206,-500.0,0.00010964,2]
[323677674,1714159844215,-500.0,0.00010964,2]
[323677675,1714159844225,-500.0,0.00010964,2]
[323677676,1714159844235,-500.0,0.00010964,2]
[323677677,1714159844244,-500.0,0.00010964,2]
[323677678,1714159844254,-503.05040795,0.00010964,2]
[323677679,1714159844264,-500.0,0.00010964,2]
[323677680,1714159844273,-500.0,0.00010964,2]
[323677681,1714159844283,-500.0,0.00010964,2]
[323677682,1714159844292,-500.0,0.00010964,2]
[323677683,1714159844302,-500.0,0.00010964,2]
[323677684,1714159844311,-500.0,0.00010964,2]
[323677685,1714159844321,-500.0,0.00010964,2]
[323677686,1714159844330,-500.0,0.00010964,2]
[323677687,1714159844340,-500.0,0.00010964,2]
[323677688,1714159844350,-500.0,0.00010964,2]
[323677689,1714159844359,-500.0,0.00010964,2]
[323677690,1714159844369,-500.0,0.00010964,2]
[323677691,1714159844379,-500.0,0.00010964,2]
[323677692,1714159844388,-500.0,0.00010964,2]
[323677693,1714159844398,-500.0,0.00010964,2]
[323677694,1714159844408,-500.0,0.00010964,2]
[323677695,1714159844417,-532.74,0.00010964,2]
[323677696,1714159844427,-500.0,0.00010964,2]
[323677697,1714159844437,-500.0,0.00010964,2]
[323677698,1714159844446,-500.0,0.00010964,2]
[323677699,1714159844456,-500.0,0.00010964,2]
[323677700,1714159844466,-500.0,0.00010964,2]
[323677701,1714159844476,-500.0,0.00010964,2]
[323677702,1714159844486,-500.0,0.00010964,2]
[323677703,1714159844495,-1214.65,0.00010964,2]
[323677704,1714159844506,-500.0,0.00010964,2]
[323677705,1714159844769,-1259.1,0.00010964,2]
[323677706,1714159844779,-500.0,0.00010964,2]
[323677707,1714159844788,-500.0,0.00010964,2]
[323677708,1714159844797,-967.69,0.00010964,2]
[323677709,1714159844806,-715.1,0.00010964,2]
[323677710,1714159844815,-500.0,0.00010964,2]
[323677711,1714159844825,-500.0,0.00010965,2]
[323677712,1714159844834,-2221.84905568,0.00010995,2]
[323677713,1714159844843,-500.0,0.00010999,2]
[323677714,1714159844852,-2750.0,0.00011,3]
[323677715,1714159844861,-500.0,0.00011074,2]
[323677716,1714159844871,-2221.84905568,0.00011132,2]
[323677717,1714159844880,-2294.02134084,0.00011136,2]
[323677718,1714159844889,-500.0,0.00011232,2]
[323677719,1714159844900,-500.0,0.00011232,2]
[323677720,1714159844909,-500.0,0.00011232,2]
[323677721,1714159844919,-500.0,0.00011232,2]
[323677722,1714159844929,-500.0,0.00011232,2]
[323677723,1714159844941,-500.0,0.00011232,2]
[323677724,1714159844950,-500.0,0.00011232,2]
[323677725,1714159844960,-500.0,0.00011232,2]
[323677726,1714159844969,-500.0,0.00011232,2]
[323677727,1714159844979,-500.0,0.00011232,2]
[323677728,1714159844988,-500.0,0.00011232,2]
[323677729,1714159844997,-500.0,0.00011232,2]
[323677730,1714159845006,-500.0,0.00011232,2]
[323677731,1714159845015,-180.02,0.00011232,2]
[323677732,1714159845024,-500.0,0.00011232,2]
[323677733,1714159845033,-601.57,0.00011232,2]
[323677734,1714159845042,-500.0,0.00011232,2]
[323677735,1714159845051,-500.0,0.00011232,2]
[323677736,1714159845060,-688.05,0.00011232,2]
[323677737,1714159845069,-500.0,0.00011232,2]
[323677738,1714159845079,-1151.71,0.00011232,2]
[323677739,1714159845088,-500.0,0.00011232,2]
[323677740,1714159845097,-500.0,0.00011232,2]
[323677741,1714159845106,-500.0,0.00011232,2]
[323677742,1714159845115,-500.0,0.00011232,2]
[323677743,1714159845124,-500.0,0.00011232,2]
[323677744,1714159845133,-304.58,0.00011232,2]
[323677745,1714159845142,-338.26,0.00011232,2]
[323677746,1714159845152,-500.0,0.00011232,2]
[323677747,1714159845161,-500.0,0.00011232,2]
[323677748,1714159845171,-500.0,0.00011232,2]
[323677749,1714159845180,-1525.29,0.00011232,2]
[323677750,1714159845190,-500.0,0.00011232,2]
[323677751,1714159845199,-680.02,0.00011232,2]
[323677752,1714159845211,-500.0,0.00011232,2]
[323677753,1714159845220,-520.73,0.00011232,2]
[323677754,1714159845231,-500.0,0.00011232,2]
[323677755,1714159845241,-500.0,0.00011232,2]
[323677756,1714159845251,-500.0,0.00011232,2]
[323677757,1714159845262,-975.22,0.00011232,2]
[323677758,1714159845271,-500.0,0.00011232,2]
[323677759,1714159845280,-1544.74,0.00011232,2]
[323677760,1714159845292,-500.0,0.00011232,2]
[323677761,1714159845302,-156.34497371,0.00011232,2]
[323677762,1714159845312,-608.96,0.00011232,2]
[323677763,1714159845322,-157.01543514,0.00011232,2]
[323677765,1714159845332,-500.0,0.00011232,2]
[323677766,1714159845342,-168.96,0.00011232,2]
[323677768,1714159845351,-1486.08,0.00011232,2]
[323677770,1714159845360,-1702.91,0.00011232,2]
[323677772,1714159845370,-500.0,0.00011232,2]
[323677774,1714159845379,-504.05367567,0.00011232,2]
[323677775,1714159845389,-500.0,0.00011232,2]
[323677776,1714159845399,-500.0,0.00011232,2]
[323677777,1714159845408,-243.98815004,0.00011232,2]
[323677778,1714159845417,-419.7417818,0.00011232,2]
[323677779,1714159845428,-500.0,0.00011232,2]
[323677780,1714159845437,-585.45,0.00011232,2]
[323677781,1714159845446,-500.0,0.00011232,2]
[323677782,1714159845457,-367.42,0.00011232,2]
[323677784,1714159845466,-266.02,0.00011232,2]
[323677786,1714159845475,-472.65229047,0.00011232,2]
[323677788,1714159845484,-500.0,0.00011232,2]
[323677790,1714159845493,-500.0,0.00011232,2]
[323677792,1714159845503,-500.0,0.00011232,2]
[323677794,1714159845512,-500.0,0.00011232,2]
[323677796,1714159845521,-500.0,0.00011232,2]
[323677798,1714159845532,-632.85,0.00011232,2]
[323677800,1714159845545,-500.0,0.00011232,2]
[323677802,1714159845554,-500.0,0.00011232,2]
[323677804,1714159845563,-500.0,0.00011232,2]
[323677806,1714159845573,-500.0,0.00011232,2]
[323677808,1714159845585,-671.98,0.00011232,2]
[323677810,1714159845594,-500.0,0.00011232,2]
[323677812,1714159845603,-223.98646344,0.00011232,2]
[323677814,1714159845614,-775.88,0.00011232,2]
[323677816,1714159845623,-500.0,0.00011232,2]
[323677818,1714159845634,-500.0,0.00011232,2]
[323677820,1714159845643,-500.0,0.00011232,2]
[323677822,1714159845652,-500.0,0.00011232,2]
[323677824,1714159845661,-601.75,0.00011232,2]
[323677826,1714159845671,-500.0,0.00011232,2]
[323677828,1714159845680,-500.0,0.00011232,2]
[323677830,1714159845689,-500.0,0.00011232,2]
[323677832,1714159845699,-500.0,0.00011232,2]
[323677834,1714159845710,-500.0,0.00011232,2]
[323677836,1714159845720,-168.45,0.00011232,2]
[323677839,1714159845729,-500.0,0.00011232,2]